bitfinex/quotes_ETHUSD_20260202
["timestamp","ask_amount","ask_price","bid_price","bid_amount"]
[1770015461600,14.86571224,2231.0,2228.6,14.19571915]
[1770015461816,28.40220228,2230.6,2228.8,13.25471915]
[1770015461970,14.86571224,2231.0,2228.2,0.1733037]
[1770015461971,14.86571224,2230.0,2228.7,0.941]
[1770015462368,14.86571224,2230.4,2228.7,14.19571915]
[1770015462594,14.47749004,2231.0,2228.9,13.25471915]
[1770015462595,1.48657122,2230.3,2228.9,13.25471915]
[1770015462767,14.86571224,2230.8,2228.9,13.25471915]
[1770015463193,14.86571224,2230.9,2228.9,13.25471915]
[1770015463516,14.86571224,2230.9,2229.0,0.941]
[1770015463517,14.86571224,2230.5,2229.0,0.941]
[1770015463676,14.86571224,2230.9,2229.0,14.19571915]
[1770015464396,14.86571224,2230.3,2229.0,14.19571915]
[1770015464599,1.48657122,2230.2,2229.0,14.19571915]
[1770015464790,14.86571224,2230.7,2229.0,14.19571915]
[1770015467075,28.40220228,2230.7,2229.1,0.941]
[1770015467501,14.86571224,2230.7,2229.1,0.941]
[1770015467687,14.86571224,2230.7,2229.1,13.91165927]
[1770015467887,1.48657122,2230.6,2229.1,13.91165927]
[1770015468677,14.86571224,2230.1,2229.1,0.941]
[1770015469333,14.86571224,2229.7,2228.3,12.97065927]
[1770015469508,14.86571224,2229.7,2228.4,0.941]
[1770015470187,14.86571224,2229.7,2228.4,13.91165927]
[1770015470503,1.48657122,2229.6,2228.4,13.91265927]
[1770015472397,16.35228346,2230.6,2228.4,13.91265927]
[1770015472590,14.86571224,2230.6,2228.4,13.91265927]
[1770015473313,14.86571224,2230.6,2228.6,12.97065927]
[1770015477596,14.86571224,2231.1,2229.0,12.97065927]
[1770015477803,14.86571224,2231.1,2229.2,12.97065927]
[1770015478106,14.86571224,2231.1,2229.4,12.97065927]
[1770015478107,1.48657122,2231.0,2229.4,12.97065927]
[1770015478330,1.48657122,2231.0,2229.5,13.91165927]
[1770015478638,1.48657122,2231.3,2229.7,12.97065927]
[1770015478799,14.86571224,2231.9,2229.7,12.97065927]
[1770015479128,0.44084335,2232.0,2230.3,12.97065927]
[1770015479422,0.44084335,2232.0,2229.6,0.297443]
[1770015479423,14.86571224,2231.7,2229.6,0.297443]
[1770015479624,14.86571224,2231.3,2229.7,13.91165927]
[1770015479808,1.48657122,2231.2,2229.9,12.97065927]
[1770015480116,14.86571224,2231.7,2229.9,12.97065927]
[1770015481136,0.1227438,2232.3,2230.3,13.20422957]
[1770015481845,0.1227438,2232.3,2231.1,12.97065927]
[1770015482035,0.1227438,2232.3,2231.2,13.91165927]
[1770015482999,1.19999225,2233.8,2231.2,13.91165927]
[1770015483000,14.86571224,2233.2,2231.3,12.97065927]
[1770015483212,14.86571224,2234.0,2232.1,12.97065927]
[1770015483505,14.86571224,2234.0,2232.3,12.97065927]
[1770015483709,14.86571224,2234.0,2231.9,12.97065927]
[1770015483710,14.86571224,2233.6,2231.9,12.97065927]
[1770015484053,14.86571224,2233.6,2231.0,0.43120469]
[1770015484054,14.86571224,2233.2,2232.0,0.941]
[1770015484380,0.23413601,2234.0,2232.0,0.941]
[1770015484534,14.86571224,2233.4,2232.0,0.941]
[1770015484730,14.86571224,2233.5,2232.0,0.941]
[1770015484909,15.44344397,2234.0,2231.0,0.43120469]
[1770015484910,14.86571224,2232.7,2231.0,0.43120469]
[1770015485240,14.86571224,2232.7,2231.1,13.91165927]
[1770015486154,1.58394684,2234.0,2231.5,12.97065927]
[1770015486321,1.58868869,2233.9,2232.4,12.97065927]
[1770015486525,0.44344296,2234.1,2232.9,0.2335703]
[1770015486724,15.07865148,2234.7,2232.9,12.97065927]
[1770015486943,15.07865148,2234.7,2232.5,0.94]
[1770015486944,28.93814861,2234.2,2232.5,0.94]
[1770015487611,13.85949713,2234.2,2232.5,0.94]
[1770015487816,15.07865148,2233.9,2232.5,0.94]
[1770015488013,1.50786515,2233.8,2232.5,0.94]
[1770015488644,28.93814861,2234.2,2232.5,0.94]
[1770015489257,13.85949713,2234.2,2232.5,0.94]
[1770015489618,0.94,2234.6,2232.5,13.71261405]
[1770015489619,15.07865148,2234.6,2232.5,13.71261405]
[1770015490119,15.07865148,2234.6,2232.6,13.00618435]
[1770015490430,12.92334561,2235.1,2232.0,13.00618435]
[1770015490651,12.92334561,2235.1,2232.8,13.00618435]
[1770015490818,28.00199709,2235.6,2232.8,13.00618435]
[1770015491374,28.00199709,2235.6,2233.0,13.00618435]
[1770015491526,12.92334561,2236.1,2233.7,12.77261405]
[1770015491721,12.92334561,2236.6,2234.5,13.00618435]
[1770015492062,0.1227438,2236.7,2235.0,13.00618435]
[1770015492231,0.1227438,2236.7,2235.1,13.71261405]
[1770015492557,0.1227438,2236.7,2235.5,12.77261405]
[1770015493064,0.4370393,2238.1,2236.3,0.1024]
[1770015493237,12.92334561,2239.4,2236.8,12.77261405]
[1770015493440,15.03606861,2238.5,2236.4,13.71261405]
[1770015493740,15.03606861,2238.0,2236.4,0.94]
[1770015493954,0.1024,2237.4,2235.2,12.77261405]
[1770015494144,15.03606861,2237.5,2235.6,0.94]
[1770015494454,15.03606861,2236.7,2235.6,0.94]
[1770015494753,13.02574561,2237.3,2235.6,0.94]
[1770015494754,15.03606861,2237.0,2235.6,0.94]
[1770015495260,15.03606861,2236.7,2235.0,2.0589858]
[1770015495471,15.03606861,2236.1,2234.3,0.94]
[1770015495672,1.50360686,2236.0,2233.8,0.939]
[1770015495860,1.50360686,2236.0,2233.9,0.939]
[1770015496167,1.50360686,2236.0,2233.9,13.71161405]
[1770015496379,1.50360686,2236.0,2233.9,0.939]
[1770015496380,15.03606861,2235.6,2233.9,0.939]
[1770015496538,15.03606861,2235.1,2233.9,0.939]
[1770015496739,15.03606861,2235.1,2233.5,0.72384451]
[1770015496740,15.03606861,2234.5,2233.5,0.72384451]
[1770015497056,0.1024,2234.4,2232.2,0.001]
[1770015497262,2.44260686,2235.0,2232.2,0.001]
[1770015497263,0.1024,2233.9,2232.2,0.001]
[1770015497462,15.03606861,2233.5,2232.2,0.001]
[1770015497647,15.03606861,2232.9,2231.5,0.939]
[1770015497850,15.03606861,2233.3,2231.5,0.939]
[1770015498371,0.1024,2233.2,2231.1,0.001]
[1770015498735,15.03606861,2232.8,2231.1,0.001]
[1770015499049,1.50360686,2232.7,2231.1,0.001]
[1770015499238,15.03606861,2231.7,2230.3,12.77261405]
[1770015499579,15.03606861,2232.3,2230.0,12.77261405]
[1770015499870,1.50360686,2232.2,2230.0,12.77261405]
[1770015500169,15.03606861,2231.8,2229.9,0.939]
[1770015500471,15.03606861,2231.3,2229.9,0.939]
[1770015501060,15.03606861,2231.3,2229.4,12.77261405]
[1770015501242,15.03606861,2230.8,2229.0,0.939]
[1770015501573,1.50360686,2230.7,2228.8,13.71161405]
[1770015502043,15.03606861,2230.3,2228.8,0.939]
[1770015502674,0.939,2230.6,2228.8,0.939]
[1770015502858,15.03606861,2230.3,2228.8,0.939]
[1770015503188,15.03606861,2229.2,2227.0,12.77261405]
[1770015503394,15.03606861,2228.5,2226.4,13.71261405]
[1770015503951,15.03606861,2228.0,2226.2,0.001]
[1770015504269,0.2335703,2229.0,2226.2,0.001]
[1770015504270,15.03606861,2227.5,2226.2,0.001]
[1770015504591,1.50360686,2227.4,2226.2,0.001]
[1770015505481,15.03606861,2227.5,2226.2,0.001]
[1770015506859,15.03606861,2227.5,2225.6,0.1227438]
[1770015507683,15.03606861,2227.5,2225.6,12.89535785]
[1770015508355,0.94,2227.9,2225.6,12.89535785]
[1770015508356,0.1024,2227.8,2225.6,12.89535785]
[1770015508687,0.1024,2227.5,2225.6,12.89535785]
[1770015508888,15.03606861,2227.1,2225.6,0.1227438]
[1770015509182,1.50360686,2227.1,2225.6,0.1227438]
[1770015509500,15.03606861,2227.6,2225.6,0.1227438]
[1770015509992,0.1024,2227.5,2225.6,0.1227438]
[1770015510197,15.03606861,2227.6,2226.2,0.001]
[1770015510556,0.1024,2227.5,2226.2,0.001]
[1770015511063,15.03606861,2227.6,2226.2,0.001]
[1770015511268,1.50360686,2227.5,2226.2,0.001]
[1770015512399,0.1024,2227.4,2225.6,0.1227438]
[1770015513051,1.50360686,2227.5,2225.6,0.1227438]
[1770015516891,1.50360686,2227.5,2226.0,12.77361405]
[1770015517182,0.94,2227.9,2226.0,12.77361405]
[1770015518996,15.03606861,2228.1,2226.0,12.77361405]
[1770015519766,0.942,2228.5,2226.0,12.77361405]
[1770015519973,15.03606861,2229.1,2226.6,13.08568182]
[1770015520297,15.03606861,2229.1,2226.8,13.08568182]
[1770015520505,0.942,2229.5,2227.4,13.08568182]
[1770015520672,15.03606861,2230.1,2228.0,13.08568182]
[1770015520871,1.18626069,2230.5,2228.2,13.08568182]
[1770015521400,1.18626069,2230.5,2228.4,13.08568182]
[1770015521610,1.50360686,2230.7,2228.6,13.08568182]
[1770015521926,15.03606861,2230.6,2228.6,14.02768182]
[1770015522276,15.03606861,2230.1,2228.6,13.08568182]
[1770015522681,0.942,2230.5,2228.6,13.08568182]
[1770015523509,0.0011,2228.8,2228.6,13.08568182]
[1770015523701,0.942,2230.5,2228.6,13.08568182]
[1770015523998,0.1024,2230.3,2228.0,14.02768182]
[1770015524201,15.03606861,2230.1,2228.0,14.02768182]
[1770015524614,0.1024,2230.0,2228.0,13.08568182]
[1770015525716,15.03606861,2229.6,2227.4,13.08568182]
[1770015525897,0.941,2229.5,2227.5,13.08568182]
[1770015529098,0.1024,2229.4,2227.5,13.08568182]
[1770015529412,0.941,2229.5,2227.5,13.08568182]
[1770015530111,15.03606861,2229.6,2227.5,13.08568182]
[1770015530610,15.03606861,2229.1,2227.2,0.941]
[1770015530814,15.03606861,2228.6,2227.2,0.941]
[1770015531014,14.74782789,2229.0,2227.2,0.941]
[1770015531181,14.74782789,2229.0,2226.0,0.001]
[1770015531182,15.03606861,2228.6,2226.5,12.91689805]
[1770015531510,0.1024,2228.5,2226.5,12.91689805]
[1770015532208,0.1024,2228.8,2226.6,12.91689805]
[1770015532385,0.1024,2228.9,2226.6,12.91689805]
[1770015532790,0.1024,2228.9,2226.7,12.91689805]
[1770015532992,12.30322103,2228.9,2226.1,13.85789805]
[1770015533211,12.30322103,2228.9,2226.0,0.001]
[1770015533212,15.03606861,2227.2,2226.0,0.001]
[1770015534912,15.03606861,2227.2,2225.6,0.1227438]
[1770015534913,15.03606861,2226.7,2225.6,0.1227438]
[1770015535115,15.97806861,2226.7,2225.6,0.1227438]
[1770015535632,0.942,2226.7,2226.4,0.001]
[1770015535836,15.03606861,2226.5,2225.1,0.001]
[1770015536033,1.50360686,2226.4,2226.1,0.001]
[1770015536233,15.97806861,2226.7,2225.1,0.001]
[1770015536734,1.50360686,2227.1,2225.3,12.91789805]
[1770015536929,15.03606861,2226.7,2225.3,12.91789805]
[1770015537100,15.03606861,2226.7,2225.3,0.001]
[1770015538611,0.1024,2226.9,2225.3,0.001]
[1770015538832,15.03606861,2226.6,2225.3,0.001]
[1770015539140,0.35720069,2226.9,2225.3,0.001]
[1770015539465,15.03606861,2226.6,2225.3,0.001]
[1770015539650,0.35720069,2226.9,2225.3,0.001]
[1770015539816,15.03606861,2226.5,2225.3,0.001]
[1770015540146,1.50360686,2226.4,2225.3,0.001]
[1770015540344,0.35720069,2226.9,2225.3,0.001]
[1770015540636,0.25480069,2226.9,2225.3,12.91789805]
[1770015540860,0.25480069,2226.9,2225.3,0.001]
[1770015541018,0.1024,2226.8,2225.3,0.001]
[1770015541221,12.17972467,2226.8,2225.3,0.001]
[1770015541451,15.03606861,2226.1,2225.1,0.001]
[1770015541653,0.942,2226.0,2225.0,0.001]
[1770015541820,13.32077721,2226.7,2225.0,12.91789805]
[1770015541821,15.03606861,2226.6,2225.0,12.91789805]
[1770015542025,15.03606861,2227.1,2225.2,12.91689805]
[1770015542330,0.1024,2227.0,2225.2,12.91689805]
[1770015542530,13.69258153,2227.0,2225.1,0.942]
[1770015542735,1.61624686,2227.0,2225.1,13.85889805]
[1770015542940,1.51384686,2227.0,2225.1,13.85889805]
[1770015543338,15.03606861,2227.1,2225.2,14.5]
[1770015543524,0.942,2227.4,2225.3,12.91689805]
[1770015544481,15.03606861,2227.6,2225.5,12.91689805]
[1770015545045,0.942,2227.9,2225.1,0.942]
[1770015545046,0.942,2227.9,2225.7,12.91689805]
[1770015545446,0.44764918,2228.4,2225.9,12.91689805]
[1770015545632,0.44764918,2228.4,2226.1,12.91689805]
[1770015545841,0.44764918,2228.4,2226.5,12.91689805]
[1770015546032,0.44764918,2228.4,2226.7,12.91689805]
[1770015546440,0.44764918,2228.4,2226.9,12.91689805]
[1770015546648,0.0011,2229.3,2227.0,12.91689805]
[1770015546840,0.0011,2229.3,2227.3,12.91689805]
[1770015547235,0.0011,2229.3,2227.0,14.5]
[1770015547236,0.0011,2229.3,2227.5,12.91689805]
[1770015548474,0.0011,2229.3,2227.7,13.17448787]
[1770015549138,0.0011,2229.3,2227.9,13.17448787]
[1770015549840,0.0011,2229.3,2228.0,14.5]
[1770015550057,0.0011,2229.3,2227.1,15.03606861]
[1770015550058,0.0011,2229.3,2227.1,13.17448787]
[1770015550235,0.0011,2229.3,2227.3,13.17448787]
[1770015550644,0.0011,2229.3,2227.5,13.17448787]
[1770015552555,0.0011,2229.3,2227.7,13.17448787]
[1770015553866,15.03606861,2229.1,2227.2,14.11648787]
[1770015554071,15.03606861,2229.1,2227.2,13.17448787]
[1770015554072,0.1024,2229.0,2227.2,13.17448787]
[1770015554250,15.03606861,2228.6,2227.0,0.36510205]
[1770015554448,15.03606861,2228.6,2227.0,13.53958992]
[1770015554449,15.16256635,2228.6,2227.0,13.53958992]
[1770015554674,15.16256635,2228.6,2227.0,0.36510205]
[1770015554844,15.16256635,2228.1,2227.0,0.36510205]
[1770015555040,0.1024,2228.0,2226.0,13.17448787]
[1770015555267,15.16256635,2228.1,2226.0,13.17448787]
[1770015555475,0.1024,2228.4,2226.0,13.17448787]
[1770015556059,0.1024,2228.4,2226.2,13.17448787]
[1770015556276,1.8747223,2228.4,2226.3,13.17448787]
[1770015557860,1.7723223,2228.4,2226.3,13.17448787]
[1770015559752,0.1024,2228.3,2226.3,13.17448787]
[1770015561293,15.16256635,2227.8,2226.3,13.17448787]
[1770015561586,0.1024,2227.7,2225.8,13.17448787]
[1770015561762,2.57089664,2227.7,2225.8,13.17448787]
[1770015565004,15.16256635,2227.3,2225.7,0.943]
[1770015565205,15.16256635,2227.3,2225.7,14.11748787]
[1770015565560,2.57089664,2227.7,2225.7,14.11748787]
[1770015565779,0.1024,2227.5,2225.7,14.11748787]
[1770015567983,1.7733463,2227.6,2225.7,14.11748787]
[1770015568478,0.1024,2227.5,2225.7,14.11748787]
[1770015569359,12.40844649,2227.9,2225.7,14.11748787]
[1770015569360,1.72973161,2228.0,2225.7,14.11748787]
[1770015569561,15.16366635,2228.2,2225.9,13.17448787]
[1770015570459,4.75,2228.1,2225.9,13.17448787]
[1770015570664,15.16366635,2228.2,2225.9,13.17448787]
[1770015570863,15.16366635,2228.2,2226.1,13.17448787]
[1770015571102,1.51636664,2228.1,2226.3,13.17448787]
[1770015571804,19.91366635,2228.2,2226.3,13.17448787]
[1770015572104,0.0011,2228.2,2226.3,13.17448787]
[1770015573473,0.0011,2228.2,2226.3,13.17548787]
[1770015575998,0.0011,2228.2,2226.5,13.17448787]
[1770015576921,0.1024,2228.1,2226.5,13.17448787]
[1770015577123,1.35359465,2228.1,2226.5,13.17448787]
[1770015577425,0.0011,2228.2,2226.7,13.17448787]
[1770015578331,0.0011,2228.2,2226.6,0.942]
[1770015578612,0.0011,2228.2,2226.6,13.82257521]
[1770015579001,12.51084649,2228.1,2226.3,0.001]
[1770015579400,15.16256635,2227.9,2226.3,0.001]
[1770015579718,1.70691882,2227.8,2226.3,12.88157521]
[1770015579919,0.942,2228.0,2226.3,12.88157521]
[1770015582914,15.16256635,2227.7,2226.3,12.88157521]
[1770015583110,2.13701041,2228.0,2226.3,12.88157521]
[1770015583441,0.96738431,2227.9,2226.3,12.88157521]
[1770015583606,0.942,2228.0,2226.3,12.88157521]
[1770015583805,2.55256664,2228.0,2226.5,12.88057521]
[1770015585112,0.0011,2228.2,2226.5,12.88057521]
[1770015585312,0.96748966,2228.1,2226.5,12.88057521]
[1770015585543,0.0011,2228.2,2226.5,12.88057521]
[1770015585708,0.0011,2228.2,2226.7,12.88057521]
[1770015585903,0.0011,2228.2,2226.9,12.88057521]
[1770015586239,0.0011,2228.4,2227.2,12.88057521]
[1770015586604,0.0011,2228.0,2227.2,12.88057521]
[1770015587347,0.0011,2228.2,2227.2,12.88057521]
[1770015587701,0.0011,2229.3,2227.3,12.80057202]
[1770015588405,0.0011,2229.3,2227.5,12.80057202]
[1770015588601,0.0011,2229.3,2227.7,12.80057202]
[1770015588817,0.0011,2229.3,2227.9,12.80057202]
[1770015589654,0.0011,2229.3,2227.8,0.942]
[1770015590151,0.0011,2229.3,2227.8,13.74257202]
[1770015590718,0.96377496,2229.2,2227.8,0.942]
[1770015590925,0.0011,2229.3,2227.8,0.942]
[1770015591851,0.0011,2229.3,2227.8,13.74257202]
[1770015594226,0.0011,2229.3,2227.8,0.942]
[1770015594227,15.16366635,2229.3,2227.8,0.942]
[1770015594673,0.1024,2229.2,2227.8,0.942]
[1770015595260,15.16366635,2229.3,2227.8,0.942]
[1770015595463,0.9632006,2229.2,2227.8,0.942]
[1770015595660,12.51520249,2229.2,2227.8,0.942]
[1770015595955,2.76788688,2229.1,2227.8,13.74257202]
[1770015596268,0.1035,2229.3,2227.8,13.74257202]
[1770015596433,0.1024,2229.1,2227.8,0.942]
[1770015597370,15.16256635,2228.7,2227.4,12.80057202]
[1770015597665,0.96396943,2229.0,2227.0,0.942]
[1770015597666,1.06654244,2228.6,2227.0,13.74257202]
[1770015597884,27.57536884,2229.2,2227.0,13.74257202]
[1770015597885,0.43588125,2230.2,2229.1,12.80057202]
[1770015598044,0.43588125,2230.2,2229.2,1.83334866]
[1770015598231,0.0011,2230.4,2229.2,1.83764528]
[1770015598432,13.82879881,2231.6,2229.9,1.16715439]
[1770015598664,14.84112011,2231.4,2230.0,0.27233602]
[1770015599166,15.21167869,2231.5,2230.0,1.43949041]
[1770015599461,15.21167869,2231.5,2230.0,0.27233602]
[1770015599666,1.38287988,2231.5,2230.3,1.16715439]
[1770015599838,0.942,2231.8,2230.4,1.16715439]
[1770015600029,0.942,2231.8,2230.5,1.16715439]
[1770015600230,14.84112011,2231.9,2230.5,1.16715439]
[1770015600438,14.84112011,2231.9,2230.2,2.33430879]
[1770015600439,13.82879881,2231.8,2230.2,1.16715439]
[1770015600836,13.93119881,2231.7,2230.1,1.16715439]
[1770015601068,13.82879881,2231.3,2229.9,1.16715439]
[1770015601243,13.82879881,2231.3,2229.8,1.16715439]
[1770015601447,13.82879881,2231.3,2229.1,12.80057202]
[1770015601448,13.82879881,2231.3,2229.6,1.16715439]
[1770015601642,0.1024,2231.2,2229.5,1.16715439]
[1770015601856,0.1024,2231.2,2229.4,2.66256658]
[1770015602062,16.83611368,2231.2,2229.5,0.51597724]
[1770015602265,16.83611368,2231.2,2229.4,1.49541219]
[1770015603179,2.90491487,2231.2,2229.5,1.16715439]
[1770015603484,2.90491487,2231.2,2229.4,1.49541219]
[1770015603485,13.82879881,2231.5,2229.7,1.16715439]
[1770015603643,13.82879881,2231.5,2229.4,1.49541219]
[1770015603644,13.82879881,2231.0,2229.4,1.49541219]
[1770015603840,15.11794987,2229.5,2227.9,1.55620586]
[1770015604080,28.94674868,2229.5,2227.6,0.001]
[1770015604374,28.94674868,2229.5,2227.6,0.39025146]
[1770015604375,2.89467487,2229.4,2227.6,0.39025146]
[1770015604577,2.89467487,2229.4,2227.6,0.001]
[1770015604578,16.72347368,2229.4,2227.6,0.001]
[1770015604784,16.72347368,2229.4,2227.4,0.001]
[1770015604785,15.11794987,2228.5,2227.4,0.001]
[1770015605253,0.941,2228.6,2227.4,0.001]
[1770015605982,14.76979881,2228.6,2227.4,0.001]
[1770015606153,15.11794987,2228.4,2227.4,0.001]
[1770015606362,1.47697988,2228.5,2227.4,0.001]
[1770015606558,0.941,2228.6,2227.4,0.001]
[1770015608258,0.1024,2229.3,2227.4,0.001]
[1770015608752,15.11794987,2229.0,2227.4,0.001]
[1770015608952,15.11794987,2228.5,2227.4,0.001]
[1770015609152,15.11794987,2228.5,2226.5,13.52597849]
[1770015609153,14.74345896,2228.4,2226.5,0.001]
[1770015609379,0.1024,2228.2,2226.5,0.001]
[1770015610601,15.11794987,2228.0,2226.5,0.001]
[1770015610762,13.80245896,2228.2,2226.5,0.001]
[1770015611274,2.98614088,2228.3,2226.5,0.001]
[1770015611482,2.98614088,2228.3,2226.5,13.52597849]
[1770015611684,15.11794987,2229.0,2226.9,13.52497849]
[1770015611894,15.11794987,2229.0,2227.0,16.02218435]
[1770015612204,3.83567487,2229.4,2227.6,0.001]
[1770015612205,4.44416129,2229.4,2227.6,0.001]
[1770015612405,0.0011,2229.1,2227.6,15.08218435]
[1770015612617,0.0011,2229.1,2227.7,1.55620586]
[1770015612905,0.0011,2229.1,2227.9,1.55620586]
[1770015613069,0.0011,2229.3,2228.0,1.55620586]
[1770015613279,15.11794987,2228.4,2227.4,0.001]
[1770015613574,1.61419499,2228.3,2227.1,0.08342837]
[1770015613900,1.51179499,2228.3,2227.1,0.08342837]
[1770015614097,15.11794987,2228.9,2227.1,0.08342837]
[1770015614098,15.11794987,2228.4,2227.1,0.08342837]
[1770015614404,15.11794987,2228.4,2226.5,0.001]
[1770015614405,15.17098294,2228.0,2226.5,0.001]
[1770015614610,0.1024,2227.3,2226.3,0.001]
[1770015614910,15.17098294,2227.4,2225.8,0.07786204]
[1770015614911,16.11298294,2227.4,2225.8,0.07786204]
[1770015615415,0.1024,2227.8,2225.8,0.07786204]
[1770015615569,3.09394419,2227.8,2225.8,0.07786204]
[1770015616202,15.17098294,2227.4,2225.8,0.07786204]
[1770015616511,3.09394419,2227.8,2226.0,13.52597849]
[1770015616713,16.79400315,2227.8,2226.0,0.001]
[1770015618210,15.17098294,2227.4,2226.0,0.001]
[1770015618395,1.51709829,2227.3,2226.0,0.001]
[1770015618821,2.99154419,2227.8,2226.0,13.52597849]
[1770015619178,15.17098294,2228.4,2226.2,13.52497849]
[1770015619415,15.17098294,2228.4,2226.4,13.52497849]
[1770015619987,15.17098294,2227.9,2226.4,13.52497849]
[1770015620192,15.17098294,2227.9,2226.3,0.942]
[1770015621329,15.17098294,2228.4,2226.3,14.46697849]
[1770015621498,1.51709829,2228.3,2226.5,13.52497849]
[1770015622125,1.51709829,2228.3,2226.3,0.942]
[1770015622126,0.1024,2228.2,2226.3,0.942]
[1770015622310,1.51709829,2228.3,2226.3,14.46697849]
[1770015623117,0.1024,2228.2,2226.3,14.46697849]
[1770015624017,1.51709829,2228.3,2226.3,14.46697849]
[1770015624324,1.66880812,2228.2,2226.3,14.46697849]
[1770015624492,13.80245896,2228.1,2226.3,0.942]
[1770015624902,0.1024,2228.1,2226.3,14.46697849]
[1770015625510,1.66880812,2228.2,2226.5,13.52597849]
[1770015625698,0.0011,2228.2,2226.5,13.52597849]
[1770015627041,15.17098294,2227.9,2226.5,0.001]
[1770015627611,15.17098294,2227.4,2226.1,0.24123936]
[1770015627814,15.17098294,2227.4,2226.0,0.001]
[1770015627815,15.17098294,2226.9,2225.7,0.001]
[1770015628013,15.17098294,2226.4,2225.0,0.001]
[1770015628222,1.51709829,2226.3,2225.0,0.001]
[1770015628530,1.51709829,2226.3,2225.0,13.52597849]
[1770015628711,0.942,2226.8,2225.0,13.52597849]
[1770015628912,0.942,2226.8,2225.0,0.001]
[1770015629302,14.64205896,2226.8,2225.0,0.001]
[1770015629526,0.1024,2226.7,2225.0,0.001]
[1770015629734,0.942,2226.8,2225.0,0.001]
[1770015632148,15.17098294,2226.5,2225.0,0.001]
[1770015632308,1.51709829,2226.4,2225.0,0.001]
[1770015632507,0.942,2226.8,2225.0,0.001]
[1770015633041,0.4326913,2226.9,2225.4,13.52597849]
[1770015633706,0.4326913,2226.9,2225.6,13.52497849]
[1770015634102,0.43269364,2228.1,2225.8,16.63739022]
[1770015634303,0.43269364,2228.1,2226.0,13.52497849]
[1770015634646,0.0011,2228.4,2226.0,13.52497849]
[1770015634647,0.0011,2228.4,2226.7,13.52497849]
[1770015634856,0.0011,2228.4,2226.0,15.17098294]
[1770015634857,0.0011,2228.4,2227.1,13.52497849]
[1770015635022,0.4557354,2229.3,2227.5,13.52497849]
[1770015635223,0.4557354,2229.3,2227.7,13.52497849]
[1770015636027,0.4557354,2229.3,2227.9,13.52497849]
[1770015636227,0.4557354,2229.3,2227.5,3.34598203]
[1770015636228,0.4557354,2229.3,2228.1,13.52497849]
[1770015637174,15.17098294,2230.5,2228.5,13.52497849]
[1770015638040,15.17098294,2230.5,2227.9,13.29082791]
[1770015638041,15.17098294,2230.0,2227.9,13.29082791]
[1770015638333,15.17098294,2229.0,2227.7,1.73628913]
[1770015638553,0.1024,2228.9,2227.7,1.73628913]
[1770015638763,15.17098294,2228.5,2226.9,13.29082791]
[1770015638960,1.72393829,2228.9,2226.9,13.29082791]
[1770015639259,0.0011,2228.2,2226.9,13.29082791]
[1770015639424,0.0011,2228.2,2226.6,0.942]
[1770015639425,15.17098294,2228.1,2226.6,0.942]
[1770015640260,0.0011,2228.2,2226.6,14.23282791]
[1770015640436,0.0011,2228.2,2226.7,13.29082791]
[1770015642055,0.0011,2228.2,2226.6,0.942]
[1770015643072,0.0011,2228.2,2226.6,14.23282791]
[1770015643643,0.0011,2228.2,2226.8,13.29082791]
[1770015644281,0.0011,2228.2,2226.7,0.58430203]
[1770015644282,15.17208294,2228.2,2226.7,0.58430203]
[1770015644591,0.1024,2228.0,2226.7,0.58430203]
[1770015646075,15.17098294,2227.4,2226.5,0.001]
[1770015646568,0.1024,2227.8,2226.5,0.001]
[1770015646772,0.1024,2227.6,2226.5,0.001]
[1770015646950,1.62973829,2227.6,2226.5,0.001]
[1770015648147,0.1024,2227.1,2226.3,0.001]
[1770015648842,0.1024,2227.5,2226.3,0.001]
[1770015650482,1.52733829,2227.6,2226.3,0.001]
[1770015650790,1.51720829,2228.1,2226.3,13.095002]
[1770015651072,0.0011,2228.2,2226.3,13.095002]
[1770015651277,15.17098294,2227.7,2226.3,0.001]
[1770015651772,0.1024,2228.0,2226.3,0.001]
[1770015652074,0.1024,2227.9,2226.3,0.001]
[1770015652249,0.1024,2227.5,2226.5,0.001]
[1770015652451,0.1024,2227.9,2226.5,0.001]
[1770015653677,13.09097341,2227.9,2226.3,0.001]
[1770015654142,0.1024,2227.2,2226.3,0.001]
[1770015654344,0.1024,2227.2,2225.5,0.46646473]
[1770015654558,1.62973829,2227.2,2225.5,0.46646473]
[1770015655174,1.62973829,2227.2,2225.5,13.56046673]
[1770015655378,1.62973829,2227.2,2225.5,0.46646473]
[1770015655951,1.52733829,2227.2,2225.5,0.46646473]
[1770015656172,1.52733829,2227.2,2225.5,13.56046673]
[1770015656483,0.1024,2227.0,2225.5,13.56046673]
[1770015658946,0.1024,2227.0,2225.5,0.46646473]
[1770015659154,15.17098294,2226.8,2225.5,0.46646473]
[1770015659466,0.1024,2226.7,2225.5,0.46646473]
[1770015660471,15.17098294,2226.3,2225.4,0.001]
[1770015660651,1.51709829,2226.2,2225.4,0.001]
[1770015660847,0.1024,2226.7,2225.4,0.001]
[1770015661084,0.1024,2227.0,2225.4,0.001]
[1770015661384,15.17098294,2226.8,2225.4,0.001]
[1770015661583,0.1024,2227.0,2225.4,0.001]
[1770015663387,0.1024,2226.7,2225.4,0.001]
[1770015663592,1.62973829,2226.7,2225.4,0.001]
[1770015663762,0.1024,2227.0,2225.4,0.001]
[1770015664514,15.17098294,2225.9,2225.0,0.001]
[1770015664658,0.1024,2225.4,2224.6,0.001]
[1770015664983,0.1024,2224.9,2224.2,0.001]
[1770015665183,15.17098294,2225.5,2223.7,13.094002]
[1770015665484,0.1024,2225.7,2224.5,0.001]
[1770015665684,0.57628254,2225.7,2224.5,0.001]
[1770015665850,0.47388254,2225.7,2224.5,0.001]
[1770015666887,2.17732712,2225.8,2224.5,13.095002]
[1770015667676,2.17732712,2225.8,2224.5,0.001]
[1770015668363,2.17732712,2225.8,2224.5,13.99006812]
[1770015668977,16.93501506,2227.1,2224.7,13.98906812]
[1770015669292,1.76403212,2227.1,2225.3,13.98906812]
[1770015669593,0.46494655,2227.2,2225.3,13.98906812]
[1770015669816,0.46494655,2227.2,2225.5,13.98906812]
[1770015670023,0.0011,2227.3,2225.7,13.98906812]
[1770015670223,0.0011,2227.5,2226.0,13.98906812]
[1770015670370,0.0011,2228.2,2226.6,13.98906812]
[1770015670570,15.17098294,2228.1,2226.7,0.942]